[Event "German Bundesliga 2023-24"]
[Site "Germany"]
[Date "2024.02.04"]
[Round "8.5"]
[White "Van Wely, Loek"]
[Black "Kramer, Julian"]
[Result "1/2-1/2"]
[ECO "A34"]
[WhiteElo "2626"]
[BlackElo "2470"]
[Annotator "ChessBase"]
[PlyCount "62"]
[EventDate "2023.10.20"]
[EventType "team-tourn"]
[EventCountry "GER"]
[SourceTitle "playchess.com"]
[Source "ChessBase"]
[SourceQuality "1"]
[TimeControl "40/6000+30:3000+30"]

1. Nf3 {[%emt 0:00:06]} Nf6 {[%emt 0:00:07]} 2. c4 {[%emt 0:00:14]} c5 {[%emt 0:00:05]} 3. Nc3 {[%emt 0:08:55]} d5 {[%emt 0:00:10]} 4. cxd5 {[%emt 0:00:32]} Nxd5 {[%emt 0:00:05]} 5. e3 {[%emt 0:01:05]} Nxc3 {[%emt 0:06:25]} 6. bxc3 {[%emt 0:01:23]} g6 {[%emt 0:00:16]} 7. h4 {[%emt 0:00:15]} Bg7 {[%emt 0:02:51]} 8. h5 {[%emt 0:00:40]} Qa5 {[%emt 0:07:44]} 9. Qb3 {[%emt 0:23:19]} Nc6 {[%emt 0:03:09]} 10. Bb2 {[%emt 0:05:24]} Qb6 {[%emt 0:14:10]} 11. Bb5 {[%emt 0:09:43]} Be6 {[%emt 0:05:42]} 12. c4 {[%emt 0:00:59]} Bxb2 {[%emt 0:07:16]} 13. Qxb2 {[%emt 0:00:13]} O-O-O {[%emt 0:05:13]} 14. O-O-O {[%emt 0:30:07]} f6 {[%emt 0:19:42]} 15. d4 {[%emt 0:04:58]} Bg4 {[%emt 0:05:01]} 16. d5 {[%emt 0:04:36]} Bxf3 {[%emt 0:05:28]} 17. gxf3 {[%emt 0:00:06]} Ne5 {[%emt 0:00:07]} 18. hxg6 {[%emt 0:08:08]} hxg6 {[%emt 0:01:28]} 19. Rxh8 {[%emt 0:00:07]} Rxh8 {[%emt 0:00:05]} 20. d6 {[%emt 0:00:06]} Rd8 {[%emt 0:05:52]} 21. f4 {[%emt 0:02:45]} Nf7 {[%emt 0:00:07]} 22. dxe7 {[%emt 0:02:44]} Rxd1+ {[%emt 0:00:04]} 23. Kxd1 {[%emt 0:00:06]} Qd6+ {[%emt 0:00:04]} 24. Ke2 {[%emt 0:01:53]} Qxe7 {[%emt 0:00:03]} 25. Qc2 {[%emt 0:00:12]} a6 {[%emt 0:04:03]} 26. Ba4 {[%emt 0:00:09]} Qe6 {[%emt 0:00:19]} 27. Bb3 {[%emt 0:01:02]} Qg4+ {[%emt 0:00:25]} 28. Kf1 {[%emt 0:00:36]} Qh3+ {[%emt 0:03:09]} 29. Kg1 {[%emt 0:00:36]} Qg4+ {[%emt 0:01:25]} 30. Kf1 {[%emt 0:00:04]} Qh3+ {[%emt 0:00:05]} 31. Kg1 {[%emt 0:00:38]} Qg4+ {[%emt 0:01:10]} 1/2-1/2

[Event "German Bundesliga 2023-24"]
[Site "Germany"]
[Date "2024.02.04"]
[Round "8.5"]
[White "Stevic, Hrvoje"]
[Black "Kraus, Tomas"]
[Result "1/2-1/2"]
[ECO "B07"]
[WhiteElo "2549"]
[BlackElo "2491"]
[Annotator "RC"]
[PlyCount "124"]
[EventDate "2023.10.20"]
[EventType "team-tourn"]
[EventCountry "GER"]
[SourceTitle "playchess.com"]
[Source "ChessBase"]
[SourceQuality "1"]
[TimeControl "40/6000+30:3000+30"]

1. e4 {[%emt 0:00:04]} d6 {[%emt 0:00:10]} 2. d4 {[%emt 0:00:41]} Nf6 {[%emt 0:00:05]} 3. Nc3 {[%emt 0:00:14]} e5 {[%emt 0:00:41]} 4. dxe5 {[%emt 0:02:32]} dxe5 {[%emt 0:00:20]} 5. Qxd8+ {[%emt 0:00:07]} Kxd8 {[%emt 0:00:10]} 6. Bc4 {[%emt 0:00:34]} Bb4 {[%emt 0:00:07]} 7. Bxf7 {[%emt 0:00:35]} Rf8 {[%emt 0:00:06]} 8. Bb3 {[%emt 0:01:13]} Nxe4 {[%emt 0:00:07]} 9. Nge2 {[%emt 0:00:06]} Nc5 {[%emt 0:00:42]} 10. Bc4 {[%emt 0:01:33]} Be6 {[%emt 0:03:48]} 11. Bxe6 {[%emt 0:00:13]} Nxe6 {[%emt 0:00:06]} 12. Bd2 {[%emt 0:06:59]} Nd7 {[%emt 0:18:00]} 13. f3 {[%emt 0:02:04]} Ke8 {[%emt 0:10:48]} 14. O-O-O {[%emt 0:01:49]} Rd8 {[%emt 0:01:23]} 15. Rhe1 {[%emt 0:45:10]} Kf7 {[%emt 0:05:15]} 16. Ne4 {[%emt 0:06:20]} Bxd2+ {[%emt 0:03:55]} 17. Rxd2 {[%emt 0:00:05]} Nf6 {[%emt 0:00:37]} 18. N2c3 {[%emt 0:00:48]} Nxe4 {[%emt 0:09:24]} 19. Nxe4 {[%emt 0:01:44]} Rfe8 {[%emt 0:05:40]} 20. Rxd8 {[%emt 0:16:34]} Rxd8 {[%emt 0:07:51]} 21. Nf2 {[%emt 0:00:17]} Nf4 {[%emt 0:01:05]} 22. g3 {[%emt 0:00:09]} Ng6 {[%emt 0:00:35]} 23. Nd3 {[%emt 0:00:27]} Rd5 {[%emt 0:02:26]} 24. Kd2 {[%emt 0:02:40]} Kf6 {[%emt 0:01:55]} 25. c4 {[%emt 0:00:49]} Rd6 {[%emt 0:08:02]} 26. Kc3 {[%emt 0:00:24]} b6 {[%emt 0:00:29]} 27. b4 {[%emt 0:00:41]} Re6 {[%emt 0:02:21]} 28. a4 {[%emt 0:03:33]} Ne7 {[%emt 0:01:58]} 29. b5 {[%emt 0:04:32]} c5 {[%emt 0:06:12]} 30. Nf2 {[%emt 0:00:20]} h5 {[%emt 0:07:25]} 31. Ne4+ {[%emt 0:01:36]} Kg6 {[%emt 0:02:28]} 32. Rd1 {[%emt 0:03:21]} Nf5 {[%emt 0:00:44]} 33. Rd7 {[%emt 0:00:21]} Re7 {[%emt 0:01:34]} 34. Rxe7 {[%emt 0:00:48]} Nxe7 {[%emt 0:00:03]} 35. a5 {[%emt 0:00:39]} Kf5 {[%emt 0:03:47]} 36. a6 {[%emt 0:01:56]} g5 {[%emt 0:03:36]} 37. Kd3 {[%emt 0:00:12]} g4 {[%emt 0:00:44]} 38. Ke3 {[%emt 0:00:06]} Ke6 {[%emt 0:02:09]} 39. Kf2 {[%emt 0:01:31]} Nc8 {[%emt 0:01:34]} 40. Kg2 {[%emt 0:03:58]} Ne7 {[%emt 0:01:30]} 41. h4 {[%emt 0:16:57]} gxf3+ {[%emt 0:14:46]} 42. Kxf3 {[%emt 0:00:00]} Kf5 {[%emt 0:00:51]} 43. Nd6+ {[%emt 0:04:27]} Ke6 {[%emt 0:01:45]} 44. Nb7 {[%emt 0:12:40]} Kf5 {[%emt 0:08:22]} 45. Nd8 {[%emt 0:05:05]} e4+ {[%emt 0:00:40]} 46. Ke3 {[%emt 0:00:50]} Kg4 {[%emt 0:01:12]} 47. Nc6 {[%emt 0:00:16]} Nc8 {[%emt 0:00:41]} 48. Kxe4 {[%emt 0:00:22]} Kxg3 {[%emt 0:00:07]} 49. Ke5 {[%emt 0:00:12]} Kxh4 {[%emt 0:01:01]} 50. Ke6 {[%emt 0:00:14]} Kg3 {[%emt 0:02:26]} 51. Kd7 {[%emt 0:00:53]} h4 {[%emt 0:00:25]} 52. Kxc8 {[%emt 0:00:05]} h3 {[%emt 0:00:04]} 53. Nxa7 {[%emt 0:00:12]} h2 {[%emt 0:00:05]} 54. Nc6 {[%emt 0:00:22]} h1=Q {[%emt 0:00:08]} 55. a7 {[%emt 0:00:05]} Qh8+ {[%emt 0:07:03]} 56. Kb7 {[%emt 0:00:09]} Qg7+ {[%emt 0:00:10]} 57. Kxb6 {[%emt 0:00:57]} Qf8 {[%emt 0:00:21]} 58. Kb7 {[%emt 0:03:24]} Qf7+ {[%emt 0:04:04]} 59. Ka6 {[%emt 0:02:43]} Qg8 {[%emt 0:06:16]} 60. Kb6 {[%emt 0:04:42]} Qf8 {[%emt 0:02:00]} 61. Nb8 {[%emt 0:02:19]} Qf6+ {[%emt 0:02:19]} 62. Nc6 {[%emt 0:02:07]} Qf8 {[%emt 0:01:34]} 1/2-1/2

[Event "German Bundesliga 2023-24"]
[Site "Germany"]
[Date "2024.02.04"]
[Round "8.5"]
[White "Maiwald, Jens-Uwe"]
[Black "Cornette, Matthieu"]
[Result "1/2-1/2"]
[ECO "B30"]
[WhiteElo "2445"]
[BlackElo "2588"]
[Annotator "ChessBase"]
[PlyCount "107"]
[EventDate "2023.10.20"]
[EventType "team-tourn"]
[EventCountry "GER"]
[SourceTitle "playchess.com"]
[Source "ChessBase"]
[SourceQuality "1"]
[TimeControl "40/6000+30:3000+30"]

1. e4 {[%emt 0:00:04]} c5 {[%emt 0:00:31]} 2. Nf3 {[%emt 0:00:44]} Nc6 {[%emt 0:00:13]} 3. Bb5 {[%emt 0:00:28]} e6 {[%emt 0:01:12]} 4. O-O {[%emt 0:01:39]} Nge7 {[%emt 0:00:16]} 5. Re1 {[%emt 0:03:02]} Ng6 {[%emt 0:01:37]} 6. c3 {[%emt 0:00:48]} a6 {[%emt 0:00:55]} 7. Bf1 {[%emt 0:04:59]} Be7 {[%emt 0:01:05]} 8. d4 {[%emt 0:01:01]} cxd4 {[%emt 0:00:13]} 9. cxd4 {[%emt 0:00:05]} d5 {[%emt 0:00:09]} 10. e5 {[%emt 0:00:43]} O-O {[%emt 0:00:29]} 11. g3 {[%emt 0:02:48]} f6 {[%emt 0:03:33]} 12. exf6 {[%emt 0:00:21]} Rxf6 {[%emt 0:00:15]} 13. Bg5 {[%emt 0:05:18]} Rf8 {[%emt 0:00:32]} 14. Bxe7 {[%emt 0:01:26]} Ngxe7 {[%emt 0:00:05]} 15. Nc3 {[%emt 0:06:23]} Nf5 {[%emt 0:00:28]} 16. Ne2 {[%emt 0:23:44]} Qf6 {[%emt 0:06:32]} 17. Bg2 {[%emt 0:02:14]} g5 {[%emt 0:02:13]} 18. Qd2 {[%emt 0:07:17]} h6 {[%emt 0:01:50]} 19. Rad1 {[%emt 0:01:17]} Bd7 {[%emt 0:01:24]} 20. Ne5 {[%emt 0:06:36]} Qg7 {[%emt 0:11:45]} 21. Nxc6 {[%emt 0:02:31]} Bxc6 {[%emt 0:02:50]} 22. Nc3 {[%emt 0:01:54]} Rf6 {[%emt 0:03:50]} 23. Re5 {[%emt 0:02:14]} Raf8 {[%emt 0:05:06]} 24. Qe1 {[%emt 0:02:15]} Bd7 {[%emt 0:04:19]} 25. Rd2 {[%emt 0:00:13]} Ne7 {[%emt 0:02:07]} 26. Bh3 {[%emt 0:09:06]} g4 {[%emt 0:05:19]} 27. Bg2 {[%emt 0:00:32]} Ng6 {[%emt 0:06:02]} 28. Re3 {[%emt 0:02:09]} h5 {[%emt 0:00:48]} 29. Nd1 {[%emt 0:03:46]} h4 {[%emt 0:04:41]} 30. Rc3 {[%emt 0:00:20]} hxg3 {[%emt 0:03:21]} 31. hxg3 {[%emt 0:00:05]} Bc6 {[%emt 0:15:50]} 32. Re2 {[%emt 0:00:24]} Re8 {[%emt 0:03:51]} 33. Qd2 {[%emt 0:06:59]} Ne7 {[%emt 0:02:07]} 34. Re5 {[%emt 0:00:20]} Kf7 {[%emt 0:07:47]} 35. Rh5 {[%emt 0:05:31]} Qg6 {[%emt 0:04:34]} 36. Rh1 {[%emt 0:01:02]} Rg8 {[%emt 0:02:24]} 37. Ne3 {[%emt 0:01:18]} Nf5 {[%emt 0:01:40]} 38. Nxf5 {[%emt 0:00:47]} Qxf5 {[%emt 0:02:16]} 39. Re3 {[%emt 0:03:20]} Bb5 {[%emt 0:01:00]} 40. Rc3 {[%emt 0:03:43]} Bc6 {[%emt 0:02:50]} 41. Rh4 {[%emt 0:11:29]} Ke8 {[%emt 0:11:10]} 42. Bf1 {[%emt 0:10:34]} Rgf8 {[%emt 0:01:56]} 43. Rh2 {[%emt 0:00:08]} Qb1 {[%emt 0:04:04]} 44. Rc1 {[%emt 0:01:08]} Qxa2 {[%emt 0:01:12]} 45. Qb4 {[%emt 0:00:31]} Qa4 {[%emt 0:05:15]} 46. Qb6 {[%emt 0:00:10]} Kd7 {[%emt 0:01:57]} 47. Bd3 {[%emt 0:20:11]} a5 {[%emt 0:03:09]} 48. Rxc6 {[%emt 0:02:22]} Qd1+ {[%emt 0:07:47]} 49. Bf1 {[%emt 0:00:06]} bxc6 {[%emt 0:00:08]} 50. Rh7+ {[%emt 0:01:35]} R6f7 {[%emt 0:02:18]} 51. Qb7+ {[%emt 0:00:10]} Ke8 {[%emt 0:00:03]} 52. Qxc6+ {[%emt 0:00:13]} Ke7 {[%emt 0:00:26]} 53. Qc7+ {[%emt 0:03:19]} Ke8 {[%emt 0:01:24]} 54. Qc8+ {[%emt 0:01:35]} 1/2-1/2

[Event "German Bundesliga 2023-24"]
[Site "Germany"]
[Date "2024.02.04"]
[Round "8.6"]
[White "Laurent-Paoli, Pierre"]
[Black "Tischbierek, Raj"]
[Result "0-1"]
[ECO "E12"]
[WhiteElo "2540"]
[BlackElo "2423"]
[Annotator "RC"]
[PlyCount "102"]
[EventDate "2023.10.20"]
[EventType "team-tourn"]
[EventCountry "GER"]
[SourceTitle "playchess.com"]
[Source "ChessBase"]
[SourceQuality "1"]
[TimeControl "40/6000+30:3000+30"]

1. d4 {[%emt 0:01:39]} Nf6 {[%emt 0:00:10]} 2. c4 {[%emt 0:00:25]} e6 {[%emt 0:00:05]} 3. Nf3 {[%emt 0:01:18]} b6 {[%emt 0:00:26]} 4. a3 {[%emt 0:02:30]} Ba6 {[%emt 0:00:28]} 5. Qb3 {[%emt 0:03:32]} d5 {[%emt 0:19:16]} 6. cxd5 {[%emt 0:04:15]} exd5 {[%emt 0:01:13]} 7. Nc3 {[%emt 0:03:17]} Be7 {[%emt 0:01:37]} 8. Bg5 {[%emt 0:08:52]} c6 {[%emt 0:02:22]} 9. g3 {[%emt 0:03:56]} O-O {[%emt 0:00:49]} 10. Bg2 {[%emt 0:02:07]} Re8 {[%emt 0:04:45]} 11. O-O {[%emt 0:05:23]} Ne4 {[%emt 0:08:43]} 12. Bxe7 {[%emt 0:29:03]} Rxe7 {[%emt 0:02:20]} 13. Rfe1 {[%emt 0:02:38]} Nd7 {[%emt 0:14:04]} 14. e3 {[%emt 0:04:56]} Bb7 {[%emt 0:06:00]} 15. Rad1 {[%emt 0:03:51]} Qc7 {[%emt 0:06:09]} 16. Qc2 {[%emt 0:02:18]} Ndf6 {[%emt 0:06:09]} 17. Ne5 {[%emt 0:03:17]} Nxc3 {[%emt 0:05:11]} 18. Qxc3 {[%emt 0:00:44]} c5 {[%emt 0:00:23]} 19. f3 {[%emt 0:05:11]} cxd4 {[%emt 0:05:03]} 20. Qxc7 {[%emt 0:00:07]} Rxc7 {[%emt 0:00:04]} 21. exd4 {[%emt 0:00:30]} Rc2 {[%emt 0:01:53]} 22. Nd3 {[%emt 0:02:06]} Kf8 {[%emt 0:03:28]} 23. Rc1 {[%emt 0:07:32]} Rac8 {[%emt 0:00:52]} 24. Rxc2 {[%emt 0:03:02]} Rxc2 {[%emt 0:00:04]} 25. Rc1 {[%emt 0:00:30]} Rc4 {[%emt 0:08:20]} 26. Rxc4 {[%emt 0:00:22]} dxc4 {[%emt 0:00:05]} 27. Ne5 {[%emt 0:00:05]} b5 {[%emt 0:01:08]} 28. f4 {[%emt 0:02:51]} Bxg2 {[%emt 0:01:57]} 29. Kxg2 {[%emt 0:00:01]} Nd5 {[%emt 0:00:41]} 30. Kf3 {[%emt 0:01:32]} f5 {[%emt 0:04:08]} 31. Nc6 {[%emt 0:01:24]} a6 {[%emt 0:00:33]} 32. Nb8 {[%emt 0:00:51]} Nc7 {[%emt 0:01:45]} 33. Ke3 {[%emt 0:01:55]} Ke7 {[%emt 0:00:56]} 34. d5 {[%emt 0:00:12]} Kd6 {[%emt 0:01:57]} 35. Kd4 {[%emt 0:00:01]} Nxd5 {[%emt 0:02:49]} 36. Nxa6 {[%emt 0:00:06]} Nf6 {[%emt 0:01:05]} 37. Nb4 {[%emt 0:02:17]} Ng4 {[%emt 0:00:21]} 38. h3 {[%emt 0:00:19]} Nf2 {[%emt 0:00:18]} 39. Nd5 {[%emt 0:01:26]} Nxh3 {[%emt 0:01:11]} 40. Ne3 {[%emt 0:03:24]} g6 {[%emt 0:01:01]} 41. a4 {[%emt 0:07:32]} bxa4 {[%emt 0:00:44]} 42. Kxc4 {[%emt 0:00:46]} Nf2 {[%emt 0:04:39]} 43. Kb4 {[%emt 0:05:19]} Ne4 {[%emt 0:03:33]} 44. Nf1 {[%emt 0:00:07]} Kd5 {[%emt 0:11:07]} 45. Kxa4 {[%emt 0:00:34]} Kd4 {[%emt 0:00:07]} 46. b4 {[%emt 0:13:09]} Kd3 {[%emt 0:01:11]} 47. Kb3 {[%emt 0:01:44]} Nd6 {[%emt 0:08:18]} 48. Ka4 {[%emt 0:04:54]} Ke2 {[%emt 0:00:58]} 49. Ka5 {[%emt 0:07:56]} Kxf1 {[%emt 0:01:02]} 50. Kb6 {[%emt 0:00:03]} Ne4 {[%emt 0:03:17]} 51. Kb5 {[%emt 0:03:08]} Kf2 {[%emt 0:00:52]} 0-1

[Event "German Bundesliga 2023-24"]
[Site "Germany"]
[Date "2024.02.04"]
[Round "8.6"]
[White "Ferreira, Jorge Viterbo"]
[Black "Jovanovic, Zoran"]
[Result "1/2-1/2"]
[ECO "E94"]
[WhiteElo "2525"]
[BlackElo "2513"]
[Annotator "RC"]
[PlyCount "59"]
[EventDate "2023.10.20"]
[EventType "team-tourn"]
[EventCountry "GER"]
[SourceTitle "playchess.com"]
[Source "ChessBase"]
[SourceQuality "1"]
[TimeControl "40/6000+30:3000+30"]

1. d4 {[%emt 0:00:04]} d6 {[%emt 0:00:08]} 2. Nf3 {[%emt 0:00:09]} g6 {[%emt 0:01:34]} 3. c4 {[%emt 0:00:12]} Bg7 {[%emt 0:00:03]} 4. Nc3 {[%emt 0:00:14]} Nf6 {[%emt 0:00:18]} 5. e4 {[%emt 0:00:11]} O-O {[%emt 0:00:06]} 6. Be2 {[%emt 0:00:12]} e5 {[%emt 0:00:03]} 7. O-O {[%emt 0:00:16]} Bg4 {[%emt 0:00:02]} 8. dxe5 {[%emt 0:01:56]} Bxf3 {[%emt 0:00:16]} 9. exf6 {[%emt 0:00:13]} Bxe2 {[%emt 0:00:03]} 10. Qxe2 {[%emt 0:00:15]} Qxf6 {[%emt 0:00:04]} 11. Nd5 {[%emt 0:04:58]} Qd8 {[%emt 0:02:44]} 12. Be3 {[%emt 0:12:39]} Re8 {[%emt 0:07:59]} 13. Qc2 {[%emt 0:02:14]} Nd7 {[%emt 0:19:11]} 14. Rad1 {[%emt 0:02:36]} c6 {[%emt 0:01:44]} 15. Nc3 {[%emt 0:01:40]} Qe7 {[%emt 0:06:03]} 16. Bd4 {[%emt 0:03:42]} Be5 {[%emt 0:06:15]} 17. f4 {[%emt 0:06:09]} Bxd4+ {[%emt 0:02:44]} 18. Rxd4 {[%emt 0:00:11]} a5 {[%emt 0:00:07]} 19. Rfd1 {[%emt 0:19:43]} Nc5 {[%emt 0:00:47]} 20. g3 {[%emt 0:02:09]} Rad8 {[%emt 0:12:12]} 21. Qd2 {[%emt 0:08:32]} Ra8 {[%emt 0:00:51]} 22. Qc2 {[%emt 0:06:38]} Rad8 {[%emt 0:00:11]} 23. Qd2 {[%emt 0:03:17]} Ra8 {[%emt 0:00:06]} 24. f5 {[%emt 0:13:37]} Qe5 {[%emt 0:00:58]} 25. Rxd6 {[%emt 0:01:19]} Nxe4 {[%emt 0:02:39]} 26. Nxe4 {[%emt 0:00:09]} Qxe4 {[%emt 0:00:02]} 27. f6 {[%emt 0:01:30]} h5 {[%emt 0:04:45]} 28. Qh6 {[%emt 0:08:13]} Qe3+ {[%emt 0:00:10]} 29. Qxe3 {[%emt 0:00:05]} Rxe3 {[%emt 0:00:02]} 30. Rd8+ {[%emt 0:06:31]} 1/2-1/2

[Event "German Bundesliga 2023-24"]
[Site "Germany"]
[Date "2024.02.04"]
[Round "8.6"]
[White "Ftacnik, Lubomir"]
[Black "Smeets, Jan"]
[Result "0-1"]
[ECO "D17"]
[WhiteElo "2455"]
[BlackElo "2535"]
[Annotator "ChessBase"]
[PlyCount "101"]
[EventDate "2023.10.20"]
[EventType "team-tourn"]
[EventCountry "GER"]
[SourceTitle "playchess.com"]
[Source "ChessBase"]
[SourceQuality "1"]
[TimeControl "40/6000+30:3000+30"]

1. Nf3 {[%emt 0:00:04]} d5 {[%emt 0:00:08]} 2. d4 {[%emt 0:00:07]} Nf6 {[%emt 0:00:11]} 3. c4 {[%emt 0:00:08]} c6 {[%emt 0:00:05]} 4. Nc3 {[%emt 0:00:16]} dxc4 {[%emt 0:00:17]} 5. a4 {[%emt 0:00:20]} Bf5 {[%emt 0:00:24]} 6. Ne5 {[%emt 0:01:15]} e6 {[%emt 0:00:55]} 7. f3 {[%emt 0:23:37]} Bb4 {[%emt 0:00:22]} 8. Nxc4 {[%emt 0:01:29]} O-O {[%emt 0:00:31]} 9. Bg5 {[%emt 0:03:14]} h6 {[%emt 0:14:40]} 10. Bh4 {[%emt 0:00:35]} c5 {[%emt 0:00:08]} 11. dxc5 {[%emt 0:05:09]} Qxd1+ {[%emt 0:13:26]} 12. Rxd1 {[%emt 0:00:35]} Bc2 {[%emt 0:00:07]} 13. Rd2 {[%emt 0:29:36]} Bb3 {[%emt 0:01:53]} 14. e4 {[%emt 0:02:01]} Nbd7 {[%emt 0:10:25]} 15. Bf2 {[%emt 0:01:16]} Bxc4 {[%emt 0:32:57]} 16. Bxc4 {[%emt 0:00:08]} Rfc8 {[%emt 0:00:02]} 17. Ke2 {[%emt 0:13:40]} Bxc3 {[%emt 0:05:03]} 18. bxc3 {[%emt 0:00:41]} Nxc5 {[%emt 0:00:07]} 19. Bxc5 {[%emt 0:14:20]} Rxc5 {[%emt 0:00:10]} 20. Bd3 {[%emt 0:00:01]} Rxc3 {[%emt 0:09:02]} 21. Rb1 {[%emt 0:00:06]} Rb8 {[%emt 0:01:28]} 22. Rdb2 {[%emt 0:01:23]} Rd8 {[%emt 0:04:53]} 23. Rd2 {[%emt 0:00:07]} Rc7 {[%emt 0:00:47]} 24. Bb5 {[%emt 0:02:56]} Rxd2+ {[%emt 0:02:03]} 25. Kxd2 {[%emt 0:00:01]} Kf8 {[%emt 0:00:08]} 26. Bd3 {[%emt 0:02:19]} Ke7 {[%emt 0:03:17]} 27. f4 {[%emt 0:02:09]} Nd7 {[%emt 0:03:58]} 28. g3 {[%emt 0:00:56]} Kd8 {[%emt 0:00:31]} 29. h4 {[%emt 0:01:55]} Kc8 {[%emt 0:01:20]} 30. e5 {[%emt 0:00:26]} h5 {[%emt 0:02:08]} 31. Rb4 {[%emt 0:02:16]} g6 {[%emt 0:00:22]} 32. Be2 {[%emt 0:00:37]} Nb6 {[%emt 0:01:04]} 33. g4 {[%emt 0:00:26]} hxg4 {[%emt 0:01:26]} 34. Bxg4 {[%emt 0:00:02]} Nd5 {[%emt 0:01:38]} 35. Rd4 {[%emt 0:00:17]} Rd7 {[%emt 0:00:06]} 36. Rc4+ {[%emt 0:00:04]} Kd8 {[%emt 0:00:13]} 37. Ke2 {[%emt 0:00:19]} Rc7 {[%emt 0:00:23]} 38. Rd4 {[%emt 0:00:23]} Rc2+ {[%emt 0:00:59]} 39. Kf3 {[%emt 0:01:00]} Ke7 {[%emt 0:00:36]} 40. h5 {[%emt 0:00:23]} f5 {[%emt 0:01:19]} 41. exf6+ {[%emt 0:05:03]} Nxf6 {[%emt 0:00:57]} 42. Bh3 {[%emt 0:02:45]} Rc3+ {[%emt 0:07:00]} 43. Kg2 {[%emt 0:00:01]} gxh5 {[%emt 0:00:26]} 44. Rb4 {[%emt 0:01:54]} b6 {[%emt 0:00:47]} 45. a5 {[%emt 0:00:41]} Nd5 {[%emt 0:03:13]} 46. Re4 {[%emt 0:00:08]} Re3 {[%emt 0:00:10]} 47. Rxe3 {[%emt 0:00:06]} Nxe3+ {[%emt 0:00:04]} 48. Kf3 {[%emt 0:00:06]} Nd5 {[%emt 0:00:33]} 49. axb6 {[%emt 0:00:06]} Nxb6 {[%emt 0:00:13]} 50. Ke4 {[%emt 0:00:36]} Kf6 {[%emt 0:00:27]} 51. Kd4 {[%emt 0:00:51]} 0-1

[Event "German Bundesliga 2023-24"]
[Site "Germany"]
[Date "2024.02.04"]
[Round "8.6"]
[White "Hertneck, Gerald"]
[Black "Kozak, Adam"]
[Result "0-1"]
[ECO "D36"]
[WhiteElo "2441"]
[BlackElo "2600"]
[Annotator "ChessBase"]
[PlyCount "86"]
[EventDate "2023.10.20"]
[EventType "team-tourn"]
[EventCountry "GER"]
[SourceTitle "playchess.com"]
[Source "ChessBase"]
[SourceQuality "1"]
[TimeControl "40/6000+30:3000+30"]

1. d4 {[%emt 0:00:03]} Nf6 {[%emt 0:02:50]} 2. Nf3 {[%emt 0:00:07]} d5 {[%emt 0:01:06]} 3. c4 {[%emt 0:00:09]} e6 {[%emt 0:00:07]} 4. Nc3 {[%emt 0:00:19]} c6 {[%emt 0:00:17]} 5. cxd5 {[%emt 0:00:20]} exd5 {[%emt 0:00:51]} 6. Bg5 {[%emt 0:00:07]} Be7 {[%emt 0:01:17]} 7. e3 {[%emt 0:00:47]} Nbd7 {[%emt 0:00:21]} 8. Qc2 {[%emt 0:00:54]} Nh5 {[%emt 0:00:07]} 9. Bxe7 {[%emt 0:00:06]} Qxe7 {[%emt 0:00:05]} 10. Be2 {[%emt 0:01:38]} g6 {[%emt 0:02:58]} 11. g4 {[%emt 0:03:32]} Ng7 {[%emt 0:02:55]} 12. h4 {[%emt 0:00:39]} Nb6 {[%emt 0:17:10]} 13. Ne5 {[%emt 0:12:47]} Be6 {[%emt 0:18:21]} 14. Nd3 {[%emt 0:05:48]} h5 {[%emt 0:02:41]} 15. gxh5 {[%emt 0:02:32]} Nxh5 {[%emt 0:00:29]} 16. Nc5 {[%emt 0:00:08]} Bf5 {[%emt 0:03:10]} 17. Qb3 {[%emt 0:00:22]} Ng7 {[%emt 0:11:08]} 18. a4 {[%emt 0:02:27]} Rb8 {[%emt 0:02:09]} 19. a5 {[%emt 0:03:10]} Nd7 {[%emt 0:02:06]} 20. Nxd7 {[%emt 0:05:21]} Bxd7 {[%emt 0:03:28]} 21. Qa3 {[%emt 0:00:47]} Qxa3 {[%emt 0:08:39]} 22. bxa3 {[%emt 0:00:13]} Ke7 {[%emt 0:03:56]} 23. Kd2 {[%emt 0:05:06]} Rbe8 {[%emt 0:07:36]} 24. Rab1 {[%emt 0:08:46]} Bc8 {[%emt 0:00:10]} 25. Bf3 {[%emt 0:00:52]} Rh6 {[%emt 0:04:43]} 26. e4 {[%emt 0:01:16]} dxe4 {[%emt 0:00:33]} 27. Bxe4 {[%emt 0:00:09]} Rd8 {[%emt 0:03:15]} 28. Ke3 {[%emt 0:01:32]} Rh5 {[%emt 0:01:24]} 29. a4 {[%emt 0:07:21]} Rxa5 {[%emt 0:00:31]} 30. Rhd1 {[%emt 0:01:56]} Nf5+ {[%emt 0:04:04]} 31. Bxf5 {[%emt 0:00:17]} Rxf5 {[%emt 0:00:07]} 32. Rb4 {[%emt 0:06:11]} Rh5 {[%emt 0:01:12]} 33. d5 {[%emt 0:00:39]} cxd5 {[%emt 0:00:18]} 34. Rbd4 {[%emt 0:00:07]} Be6 {[%emt 0:01:31]} 35. Rb1 {[%emt 0:00:56]} b6 {[%emt 0:01:38]} 36. a5 {[%emt 0:03:05]} Rc8 {[%emt 0:03:14]} 37. axb6 {[%emt 0:00:53]} Rxc3+ {[%emt 0:01:56]} 38. Kd2 {[%emt 0:00:10]} Rc8 {[%emt 0:00:10]} 39. bxa7 {[%emt 0:00:07]} Ra8 {[%emt 0:00:54]} 40. Ra4 {[%emt 0:01:03]} Rhh8 {[%emt 0:00:30]} 41. Rb7+ {[%emt 0:50:13]} Kd6 {[%emt 0:01:09]} 42. Ra6+ {[%emt 0:00:00]} Ke5 {[%emt 0:06:29]} 43. Rab6 {[%emt 0:00:00]} Rxh4 {[%emt 0:01:27]} 0-1